lending/lending_fUSD_20240816
["ID","MTS","AMOUNT","RATE_DAILY","PERIOD"]
[335055695,1723794676727,-1282.98,0.00023561,7]
[335055696,1723794676737,-500.0,0.00023561,7]
[335055697,1723794676747,-1282.98,0.00023561,7]
[335055698,1723794676756,-500.0,0.00023561,7]
[335055699,1723794676765,-1282.98,0.00023561,7]
[335055700,1723794676774,-500.0,0.00023561,7]
[335055701,1723794676783,-1282.98,0.00023561,7]
[335055702,1723794676792,-500.0,0.00023561,7]
[335055703,1723794676800,-1282.98,0.00023561,7]
[335055704,1723794676809,-500.0,0.00023561,7]
[335055705,1723794676819,-529.94666986,0.00023561,7]
[335055706,1723794676827,-1282.98,0.00023561,7]
[335055707,1723794676836,-500.0,0.00023561,7]
[335055708,1723794676845,-1282.98,0.00023561,7]
[335055709,1723794676854,-500.0,0.00023561,7]
[335055710,1723794676864,-1282.98,0.00023561,7]
[335055711,1723794676873,-500.0,0.00023561,7]
[335055712,1723794676882,-1565.35,0.00023561,7]
[335055713,1723794676892,-1282.98,0.00023561,7]
[335055714,1723794676901,-578.84669437,0.00023561,7]
[335055715,1723794676912,-500.0,0.00023561,7]
[335055716,1723794676921,-1565.35,0.00023561,7]
[335055717,1723794676930,-1282.98,0.00023561,7]
[335055718,1723794676940,-500.0,0.00023561,7]
[335055719,1723794676950,-1565.35,0.00023561,7]
[335055720,1723794676960,-1282.98,0.00023561,7]
[335055721,1723794676969,-1565.35,0.00023561,7]
[335055722,1723794676979,-500.0,0.00023561,7]
[335055723,1723794676988,-1282.98,0.00023561,7]
[335055724,1723794676998,-2498.12,0.00023561,7]
[335055725,1723794677007,-500.0,0.00023561,7]
[335055726,1723794677018,-1565.35,0.00023561,7]
[335055727,1723794677027,-1282.98,0.00023561,7]
[335055728,1723794677039,-2498.12,0.00023561,7]
[335055729,1723794677051,-500.0,0.00023561,7]
[335055730,1723794677061,-1565.35,0.00023561,7]
[335055731,1723794677072,-2498.12,0.00023561,7]
[335055732,1723794677082,-186.43492097,0.00023561,7]
[335055733,1723794677094,-1283.1275169,0.00023561,7]
[335055734,1723794677103,-500.0,0.00023561,7]
[335055735,1723794677112,-2498.12,0.00023561,7]
[335055736,1723794677123,-500.0,0.00023561,7]
[335055737,1723794677137,-1565.35,0.00023561,7]
[335055738,1723794677148,-2498.12,0.00023561,7]
[335055739,1723794677157,-500.0,0.00023561,7]
[335055740,1723794677168,-1565.35,0.00023561,7]
[335055741,1723794677178,-2498.12,0.00023561,7]
[335055742,1723794677188,-500.0,0.00023561,7]
[335055743,1723794677198,-500.0,0.00023561,7]
[335055744,1723794677208,-2498.12,0.00023561,7]
[335055745,1723794677218,-500.0,0.00023561,7]
[335055746,1723794677228,-500.0,0.00023561,7]
[335055747,1723794677237,-1565.35,0.00023561,7]
[335055748,1723794677246,-2498.12,0.00023561,7]
[335055749,1723794677256,-500.0,0.00023561,7]
[335055750,1723794677265,-500.0,0.00023561,7]
[335055751,1723794677275,-1565.35,0.00023561,7]
[335055752,1723794677284,-2498.12,0.00023561,7]
[335055753,1723794677293,-500.0,0.00023561,7]
[335055754,1723794677302,-500.0,0.00023561,7]
[335055755,1723794677312,-1565.35,0.00023561,7]
[335055756,1723794677323,-2498.12,0.00023561,7]
[335055757,1723794677333,-2093.35,0.00023561,7]
[335055758,1723794677342,-500.0,0.00023561,7]
[335055759,1723794677351,-500.0,0.00023561,7]
[335055760,1723794677362,-500.0,0.00023561,7]
[335055761,1723794677372,-1565.35,0.00023561,7]
[335055762,1723794677383,-2093.35,0.00023561,7]
[335055763,1723794677392,-2498.12,0.00023561,7]
[335055764,1723794677403,-500.0,0.00023561,7]
[335055765,1723794677414,-1058.87,0.00023561,7]
[335055766,1723794677423,-500.0,0.00023561,7]
[335055767,1723794677432,-500.0,0.00023561,7]
[335055768,1723794677441,-1565.35,0.00023561,7]
[335055769,1723794677450,-500.0,0.00023561,7]
[335055770,1723794677460,-2498.12,0.00023561,7]
[335055771,1723794677473,-2093.35,0.00023561,7]
[335055772,1723794677483,-568.87534951,0.00023561,7]
[335055773,1723794677493,-1058.87,0.00023561,7]
[335055774,1723794677503,-500.0,0.00023561,7]
[335055775,1723794677512,-1565.35,0.00023561,7]
[335055776,1723794677522,-500.0,0.00023561,7]
[335055777,1723794677533,-1227.4006551,0.00023561,7]
[335055778,1723794677679,-865.9493449,0.00023561,7]
[335055779,1723794677688,-69.26549761,0.00023561,7]
[335055780,1723794678282,-912.85999773,0.000109,2]
[335055781,1723794678293,-926.09124472,0.000109,2]
[335055782,1723794678302,-151.0,0.00017728,2]
[335055783,1723794678313,-2428.85450239,0.00023561,7]
[335055784,1723794678322,-1058.87,0.00023561,7]
[335055785,1723794678331,-500.0,0.00023561,7]
[335055786,1723794678340,-189.14417967,0.00023561,7]
[335055787,1723794678361,-1376.20582033,0.00023561,7]
[335055788,1723794678370,-500.0,0.00023561,7]
[335055789,1723794678379,-2498.12,0.00023561,7]
[335055790,1723794678388,-2093.36252323,0.00023561,7]
[335055791,1723794678397,-1058.87,0.00023561,7]
[335055792,1723794678406,-1565.35,0.00023561,7]
[335055793,1723794678417,-2498.12,0.00023561,7]
[335055794,1723794678426,-500.0,0.00023561,7]
[335055795,1723794678436,-1058.87,0.00023561,7]
[335055796,1723794678445,-1565.35,0.00023561,7]
[335055797,1723794678454,-287.83875645,0.00023561,7]
[335055798,1723794678474,-924.63651911,0.00023561,7]
[335055799,1723794678485,-1285.64472444,0.00023561,7]
[335055800,1723794678495,-500.0,0.00023561,7]
[335055801,1723794678504,-96.42851555,0.00023561,7]
[335055802,1723794678774,-508.9957366,0.00023561,7]
[335055803,1723794678785,-453.44574785,0.00023561,7]
[335055804,1723794678795,-154.52559238,0.00023561,7]
[335055805,1723794678832,-345.47440762,0.00023561,7]
[335055806,1723794678841,-584.52559238,0.00023561,7]
[335055807,1723794678857,-980.82440762,0.00023561,7]
[335055808,1723794678866,-500.0,0.00023561,7]
[335055809,1723794678876,-791.67559238,0.00023561,7]
[335055810,1723794678888,-267.19440762,0.00023561,7]
[335055811,1723794678898,-192.39545342,0.00023561,7]
[335055812,1723794678941,-307.60454658,0.00023561,7]
[335055813,1723794678950,-235.18863815,0.00023561,7]
[335055814,1723794678962,-1330.16136185,0.00023561,7]
[335055815,1723794678972,-500.0,0.00023561,7]
[335055816,1723794678982,-1058.87,0.00023561,7]
[335055817,1723794678991,-500.0,0.00023561,7]
[335055818,1723794679001,-1177.40046706,0.00023561,7]
[335055819,1723794679017,-387.94953294,0.00023561,7]
[335055820,1723794679026,-471.0412641,0.00023561,7]
[335055821,1723794679043,-28.9587359,0.00023561,7]
[335055822,1723794679053,-975.88626377,0.00023561,7]
[335055823,1723794679066,-82.98373623,0.00023561,7]
[335055824,1723794679075,-500.0,0.00023561,7]
[335055825,1723794679085,-1565.35,0.00023561,7]
[335055826,1723794679094,-1058.87,0.00023561,7]
[335055827,1723794679103,-500.0,0.00023561,7]
[335055828,1723794679113,-500.0,0.00023561,7]
[335055829,1723794679122,-790.79626377,0.00023561,7]
[335055830,1723794679141,-774.55373623,0.00023561,7]
[335055831,1723794679151,-117.98950293,0.00023561,7]
[335055832,1723794679171,-940.88049707,0.00023561,7]
[335055833,1723794679180,-500.0,0.00023561,7]
[335055834,1723794679190,-500.0,0.00023561,7]
[335055835,1723794679199,-500.0,0.00023561,7]
[335055836,1723794679211,-1565.35,0.00023561,7]
[335055837,1723794679221,-500.0,0.00023561,7]
[335055838,1723794679230,-500.0,0.00023561,7]
[335055839,1723794679239,-500.0,0.00023561,7]
[335055840,1723794679248,-1565.35379997,0.00023561,7]
[335055841,1723794679257,-1058.87,0.00023561,7]
[335055842,1723794679266,-500.0,0.00023561,7]
[335055843,1723794679275,-501.48790565,0.00023561,7]
[335055844,1723794679284,-240.56262214,0.00023561,7]
[335055845,1723794679294,-1058.87,0.00023561,7]
[335055846,1723794679304,-500.0,0.00023561,7]
[335055847,1723794679313,-151.0,0.00023561,7]
[335055848,1723794679322,-1058.87,0.00023561,7]
[335055849,1723794679331,-509.44,0.00023561,7]
[335055850,1723794679340,-500.0,0.00023561,7]
[335055851,1723794679350,-151.0,0.00023561,7]
[335055852,1723794679359,-1058.87,0.00023561,7]
[335055853,1723794679368,-509.44,0.00023561,7]
[335055854,1723794679378,-500.0,0.00023561,7]
[335055855,1723794679387,-151.0,0.00023561,7]
[335055856,1723794679396,-1058.87,0.00023561,7]
[335055857,1723794679406,-509.44,0.00023561,7]
[335055858,1723794679417,-500.0,0.00023561,7]
[335055859,1723794679427,-151.0,0.00023561,7]
[335055860,1723794679437,-1058.87,0.00023561,7]
[335055861,1723794679447,-509.44,0.00023561,7]
[335055862,1723794679456,-500.0,0.00023561,7]
[335055863,1723794679467,-151.0,0.00023561,7]
[335055864,1723794679476,-1058.87,0.00023561,7]
[335055865,1723794679486,-509.44,0.00023561,7]
[335055866,1723794679496,-500.0,0.00023561,7]
[335055867,1723794679505,-1058.87,0.00023561,7]
[335055868,1723794679514,-500.0,0.00023561,7]
[335055869,1723794679523,-509.44,0.00023561,7]
[335055870,1723794679533,-151.0,0.00023561,7]
[335055871,1723794679543,-3585.15,0.00023561,7]
[335055872,1723794679552,-186.50616223,0.00023561,7]
[335055873,1723794679561,-1058.87,0.00023561,7]
[335055874,1723794679571,-500.0,0.00023561,7]
[335055875,1723794679580,-509.44,0.00023561,7]
[335055876,1723794679589,-500.0,0.00023561,7]
[335055877,1723794679599,-1058.87,0.00023561,7]
[335055878,1723794679608,-3585.15,0.00023561,7]
[335055879,1723794679618,-500.0,0.00023561,7]
[335055880,1723794679627,-509.44,0.00023561,7]
[335055881,1723794679637,-500.0,0.00023561,7]
[335055882,1723794679646,-1058.87,0.00023561,7]
[335055883,1723794679656,-3585.15,0.00023561,7]
[335055884,1723794679668,-500.0,0.00023561,7]
[335055885,1723794679678,-509.44,0.00023561,7]
[335055886,1723794679688,-500.0,0.00023561,7]
[335055887,1723794679697,-1058.87,0.00023561,7]
[335055888,1723794679707,-3585.15,0.00023561,7]
[335055889,1723794679716,-328.73137189,0.00023561,7]
[335055890,1723794679725,-509.44,0.00023561,7]
[335055891,1723794679735,-501.56145246,0.00023561,7]
[335055892,1723794679746,-3585.15,0.00023561,7]
[335055893,1723794679755,-509.44,0.00023561,7]
[335055894,1723794679765,-3585.15,0.00023561,7]
[335055895,1723794679776,-509.44,0.00023561,7]
[335055896,1723794679787,-1058.90333447,0.00023561,7]
[335055897,1723794679797,-500.0,0.00023561,7]
[335055898,1723794679807,-509.44,0.00023561,7]
[335055899,1723794679816,-583.67,0.00023561,7]
[335055900,1723794679826,-3585.15,0.00023561,7]
[335055901,1723794679835,-500.0,0.00023561,7]
[335055902,1723794679845,-509.44,0.00023561,7]
[335055903,1723794679855,-583.67,0.00023561,7]
[335055904,1723794679864,-500.0,0.00023561,7]
[335055905,1723794679873,-509.44,0.00023561,7]
[335055906,1723794679883,-583.67,0.00023561,7]
[335055907,1723794679892,-500.0,0.00023561,7]
[335055908,1723794679903,-3585.15,0.00023561,7]
[335055909,1723794679915,-583.67,0.00023561,7]
[335055910,1723794679925,-3585.15,0.00023561,7]
[335055911,1723794679934,-583.67,0.00023561,7]
[335055912,1723794679944,-509.44,0.00023561,7]
[335055913,1723794679953,-500.0,0.00023561,7]
[335055914,1723794679963,-3585.15,0.00023561,7]
[335055915,1723794679973,-500.0,0.00023561,7]
[335055916,1723794679984,-583.67,0.00023561,7]
[335055917,1723794679995,-509.44,0.00023561,7]
[335055918,1723794680006,-500.0,0.00023561,7]
[335055919,1723794680016,-3585.15,0.00023561,7]
[335055920,1723794680024,-500.0,0.00023561,7]
[335055921,1723794680034,-583.67,0.00023561,7]
[335055922,1723794680045,-1028.43,0.00023561,7]
[335055923,1723794680056,-509.44,0.00023561,7]
[335055924,1723794680066,-500.0,0.00023561,7]
[335055925,1723794680077,-3585.15,0.00023561,7]
[335055926,1723794680086,-500.0,0.00023561,7]
[335055927,1723794680096,-509.44,0.00023561,7]
[335055928,1723794680108,-1028.43,0.00023561,7]
[335055929,1723794680119,-500.0,0.00023561,7]
[335055930,1723794680130,-500.0,0.00023561,7]
[335055931,1723794680142,-3585.15,0.00023561,7]
[335055932,1723794680153,-583.67,0.00023561,7]
[335055933,1723794680165,-509.44,0.00023561,7]
[335055934,1723794680181,-1028.43,0.00023561,7]
[335055935,1723794680190,-500.0,0.00023561,7]
[335055936,1723794680200,-3585.15,0.00023561,7]
[335055937,1723794680210,-500.0,0.00023561,7]
[335055938,1723794680220,-2498.12,0.00023561,7]
[335055939,1723794680229,-509.44,0.00023561,7]
[335055940,1723794680238,-583.67,0.00023561,7]
[335055941,1723794680248,-500.0,0.00023561,7]
[335055942,1723794680257,-3585.15,0.00023561,7]
[335055943,1723794680266,-500.0,0.00023561,7]
[335055944,1723794680275,-2498.12,0.00023561,7]
[335055945,1723794680284,-155.00399526,0.00023561,7]
[335055946,1723794680294,-509.44,0.00023561,7]
[335055947,1723794680303,-583.67,0.00023561,7]
[335055948,1723794680312,-3585.15,0.00023561,7]
[335055949,1723794680322,-500.0,0.00023561,7]
[335055950,1723794680331,-1028.43,0.00023561,7]
[335055951,1723794680341,-2498.12,0.00023561,7]
[335055952,1723794680351,-583.67,0.00023561,7]
[335055953,1723794680360,-3585.15,0.00023561,7]
[335055954,1723794680370,-500.0,0.00023561,7]
[335055955,1723794680379,-583.67,0.00023561,7]
[335055956,1723794680388,-2498.12,0.00023561,7]
[335055957,1723794680398,-3585.15,0.00023561,7]
[335055958,1723794680407,-500.0,0.00023561,7]
[335055959,1723794680419,-1028.43,0.00023561,7]
[335055960,1723794680428,-509.44,0.00023561,7]
[335055961,1723794680437,-2498.12,0.00023561,7]
[335055962,1723794680447,-3585.15,0.00023561,7]
[335055963,1723794680456,-500.0,0.00023561,7]
[335055964,1723794680466,-1028.43,0.00023561,7]
[335055965,1723794680476,-509.65934813,0.00023561,7]
[335055966,1723794680486,-583.67,0.00023561,7]
[335055967,1723794680496,-2498.12,0.00023561,7]
[335055968,1723794680506,-3585.15,0.00023561,7]
[335055969,1723794680516,-500.0,0.00023561,7]
[335055970,1723794680526,-1028.43,0.00023561,7]
[335055971,1723794680536,-583.67,0.00023561,7]
[335055972,1723794680546,-3585.15,0.00023561,7]
[335055973,1723794680555,-1028.43,0.00023561,7]
[335055974,1723794680565,-2498.12,0.00023561,7]
[335055975,1723794680575,-583.67,0.00023561,7]
[335055976,1723794680585,-3585.15,0.00023561,7]
[335055977,1723794680595,-500.0,0.00023561,7]
[335055978,1723794680604,-1028.43,0.00023561,7]
[335055979,1723794680614,-2498.26326936,0.00023561,7]
[335055980,1723794680624,-583.67,0.00023561,7]
[335055981,1723794680633,-561.2,0.00023561,7]
[335055982,1723794680644,-3585.15,0.00023561,7]
[335055983,1723794680654,-1028.43,0.00023561,7]
[335055984,1723794680666,-500.0,0.00023561,7]
[335055985,1723794680676,-511.14,0.00023561,7]
[335055986,1723794680687,-583.67,0.00023561,7]
[335055987,1723794680697,-3585.22643952,0.00023561,7]
[335055988,1723794680707,-500.0,0.00023561,7]
[335055989,1723794680717,-511.14,0.00023561,7]
[335055990,1723794680727,-583.67,0.00023561,7]
[335055991,1723794680736,-500.0,0.00023561,7]
[335055992,1723794680746,-511.14,0.00023561,7]
[335055993,1723794680755,-583.67,0.00023561,7]
[335055994,1723794680767,-1028.43,0.00023561,7]
[335055995,1723794680777,-500.0,0.00023561,7]
[335055996,1723794680787,-511.14,0.00023561,7]
[335055997,1723794680797,-583.67,0.00023561,7]
[335055998,1723794680806,-1028.43,0.00023561,7]
[335055999,1723794680816,-511.14,0.00023561,7]
[335056000,1723794680825,-583.67,0.00023561,7]
[335056001,1723794680835,-1028.43,0.00023561,7]
[335056002,1723794680845,-169.29244856,0.00023561,7]
[335056003,1723794680996,-330.70755144,0.00023561,7]
[335056004,1723794681007,-500.0,0.00023561,7]
[335056005,1723794681016,-511.14,0.00023561,7]
[335056006,1723794681027,-583.67,0.00023561,7]
[335056007,1723794681036,-489.16921884,0.00023561,7]
[335056011,1723794885055,2000.0,0.00021208,120]
[335056026,1723795599394,550.0,0.0001,2]
[335056029,1723795650861,150.0,0.00023685,120]
[335056030,1723795668974,170.56038761,0.0001,2]
[335056031,1723795677360,3408.37697331,0.0001,2]
[335056032,1723795677878,181.89991337,0.0001,2]
[335056034,1723795704815,300.06942991,0.0001,2]
[335056035,1723795705290,151.081617,0.00025,60]
[335056037,1723795715798,300.06942991,0.0001,2]
[335056038,1723795720398,162.782967,0.0001,2]
[335056058,1723795770329,181.89991337,0.0001,2]
[335056059,1723795770832,150.0,0.00024837,120]
[335056061,1723795773700,170.56038761,0.0001,2]
[335056076,1723795832305,-308.06435349,0.00011899,2]
[335056077,1723795832315,-1444.8273586,0.00011999,2]
[335056078,1723795832326,-1405.14,0.00011999,2]
[335056079,1723795832337,-300.0,0.00011999,2]
[335056080,1723795832347,-300.0,0.00011999,2]
[335056081,1723795832357,-600.0,0.00012,2]
[335056082,1723795832368,-5000.0,0.00012,2]
[335056083,1723795832379,-202.96339221,0.00012121,2]
[335056084,1723795832389,-170.56038761,0.00012121,2]
[335056085,1723795832399,-181.84971131,0.00012121,2]
[335056086,1723795832409,-155.0,0.00013001,2]
[335056087,1723795832420,-219.68964161,0.00013042,2]
[335056088,1723795832430,-420.0,0.00013172,2]
[335056089,1723795832440,-262.0,0.00013199,2]
[335056090,1723795832450,-113.98366927,0.00013292,2]
[335056093,1723795832587,-41.01633073,0.00013292,2]
[335056094,1723795832596,-1298.45974265,0.00013698,2]
[335056095,1723795832606,-348.26413265,0.00013698,2]
[335056096,1723795832615,-164.66981099,0.0001385,2]
[335056097,1723795832625,-293.95175179,0.0001385,2]
[335056098,1723795832634,-8490.22,0.00013861,2]
[335056099,1723795832644,-522.9745894,0.00013861,2]
[335056100,1723795832653,-650.0,0.00014,2]
[335056101,1723795832663,-499.99,0.00014235,2]
[335056102,1723795832672,-150.0,0.00014244,2]
[335056103,1723795832682,-9999.99,0.00014245,2]
[335056104,1723795832691,-587.0,0.0001446,2]
[335056105,1723795832706,-23737.16126312,0.00014499,2]
[335056106,1723795832715,-299.99,0.00014499,2]
[335056107,1723795832725,-1257.95663297,0.00014681,2]
[335056108,1723795832736,-3603.0,0.00015,2]
[335056109,1723795832754,-255.0,0.00015369,2]
[335056110,1723795832763,-340.38,0.00015653,2]
[335056111,1723795832774,-823.0,0.00015874,2]
[335056112,1723795832784,-1000.0,0.00017742,2]
[335056113,1723795832794,-340.38,0.00017917,2]
[335056114,1723795832803,-23900.0,0.00018069,2]
[335056115,1723795832812,-175.47,0.00018238,2]
[335056116,1723795832822,-250.0,0.00018242,2]
[335056117,1723795832832,-250.0,0.00018357,2]
[335056118,1723795832842,-200.0,0.00018357,2]
[335056119,1723795832851,-1994.19,0.00018423,2]
[335056120,1723795832860,-6603.19,0.00018512,2]
[335056121,1723795832870,-158.69,0.00018526,2]
[335056122,1723795832880,-500.0,0.00018903,2]
[335056123,1723795832890,-10000.0,0.00019102,2]
[335056124,1723795832900,-200.0,0.00019384,2]
[335056125,1723795832909,-500.0,0.00019499,2]
[335056126,1723795832918,-1000.0,0.0001996,2]
[335056127,1723795832927,-232.07,0.00019964,3]
[335056128,1723795832937,-696.24,0.00019964,3]
[335056129,1723795832946,-500.0,0.00019999,2]
[335056130,1723795832956,-500.0,0.00019999,2]
[335056131,1723795832965,-500.0,0.00019999,2]
[335056132,1723795832975,-500.0,0.00019999,2]
[335056133,1723795832984,-340.38,0.00020181,2]
[335056134,1723795832993,-775.89,0.00020378,2]
[335056135,1723795833003,-1055.480923,0.00021,2]
[335056136,1723795833013,-1673.0,0.00021054,2]
[335056137,1723795833023,-5134.0,0.00021054,2]
[335056138,1723795833032,-289.0,0.00021054,2]
[335056139,1723795833041,-21761.0,0.00021054,2]
[335056140,1723795833050,-1204.0,0.00021054,2]
[335056141,1723795833060,-5843.0,0.00021054,2]
[335056142,1723795833069,-500.0,0.00021095,2]
[335056143,1723795833079,-573.1560957,0.00021208,2]
[335056144,1723795833088,-464.14,0.00021334,3]
[335056145,1723795833098,-4701.06,0.00021339,2]
[335056146,1723795833107,-410.6515,0.00021644,2]
[335056147,1723795833117,-400.0,0.0002166,2]
[335056148,1723795833126,-160.86,0.0002166,2]
[335056149,1723795833136,-157.74,0.00021918,2]
[335056150,1723795833145,-150.16,0.00021918,2]
[335056151,1723795833155,-1000.0,0.00022177,2]
[335056152,1723795833164,-500.0,0.00022191,2]
[335056153,1723795833174,-500.0,0.00022191,2]
[335056154,1723795833184,-500.0,0.00022191,2]
[335056155,1723795833194,-500.0,0.00022191,2]
[335056156,1723795833204,-340.38,0.00022444,2]
[335056157,1723795833213,-12314.42324481,0.00023,3]
[335056158,1723795833223,-421.19,0.00023096,2]
[335056159,1723795833233,-1270.61,0.00023096,2]
[335056160,1723795833243,-421.19,0.00023096,2]
[335056161,1723795833253,-421.19,0.00023096,2]
[335056162,1723795833263,-421.19,0.00023096,2]
[335056163,1723795833272,-421.19,0.00023096,2]
[335056164,1723795833282,-440.15,0.00023096,2]
[335056165,1723795833292,-842.18,0.00023096,2]
[335056166,1723795833301,-2500.0,0.00023241,2]
[335056167,1723795833311,-1000.0,0.00023251,2]
[335056168,1723795833320,-186.79076405,0.00023261,2]
[335056169,1723795833330,-210.31752,0.0002333,2]
[335056170,1723795833340,-760.89,0.0002335,2]
[335056171,1723795833350,-760.89,0.0002335,2]
[335056172,1723795833360,-760.89,0.00023351,2]
[335056173,1723795833370,-760.89,0.00023351,2]
[335056174,1723795833380,-63536.03914388,0.00023351,3]
[335056175,1723795833800,300.06942991,0.0001,2]
[335056178,1723795838255,-949.25809032,0.00011336,2]
[335056179,1723795838265,-499.99,0.00013292,2]
[335056180,1723795838276,-531.33260631,0.00014753,2]
[335056181,1723795838287,-32007.99390492,0.00023351,3]
[335056182,1723795838299,-225.54,0.00023351,2]
[335056183,1723795838312,-2357.89277135,0.00023361,2]
[335056184,1723795838322,-4487.3596,0.00023361,2]
[335056185,1723795838332,-221558.553,0.00023361,2]
[335056186,1723795838342,-3607.5151,0.00023361,2]
[335056187,1723795838352,-150.0,0.0002337,2]
[335056188,1723795838362,-150.0,0.0002337,2]
[335056189,1723795838371,-300.46,0.0002337,2]
[335056190,1723795838381,-300.0,0.0002337,2]
[335056191,1723795838391,-154.46,0.0002337,2]
[335056192,1723795838400,-635.68,0.0002337,2]
[335056193,1723795838410,-1061.94,0.0002337,2]
[335056194,1723795838419,-519.26,0.0002337,2]
[335056195,1723795838429,-150.0,0.0002337,2]
[335056196,1723795838438,-150.0,0.0002337,2]
[335056197,1723795838448,-531.07,0.0002337,2]
[335056198,1723795838463,-150.0,0.0002337,2]
[335056199,1723795838473,-301.57,0.0002337,2]
[335056200,1723795838483,-10616.0036721,0.00023431,3]
[335056201,1723795838495,-420.40735223,0.0002344,2]
[335056202,1723795838505,-10616.0036721,0.00023441,3]
[335056203,1723795838515,-934.4656,0.00023441,2]
[335056205,1723795838526,-658.0173,0.00023441,2]
[335056207,1723795838536,-1000.0,0.00023451,2]
[335056209,1723795838547,-10616.0036721,0.00023451,3]
[335056211,1723795838557,-246.7984,0.00023451,2]
[335056213,1723795838567,-289.9408,0.00023451,2]
[335056215,1723795838577,-2849.1645,0.00023451,2]
[335056217,1723795838588,-9664.7802,0.00023451,2]
[335056219,1723795838597,-543.0005,0.00023451,2]
[335056221,1723795838607,-2044.009,0.00023451,2]
[335056223,1723795838617,-167.7305538,0.00023461,2]
[335056224,1723795838627,-1850.1656,0.00023461,2]
[335056225,1723795838636,-13227.346,0.00023461,2]
[335056226,1723795838646,-1636.9819,0.00023461,2]
[335056227,1723795838656,-10616.0036721,0.00023467,3]
[335056228,1723795838666,-2651.62,0.00023469,2]
[335056229,1723795838676,-3477.65472568,0.00023487,10]
[335056230,1723795838686,-150.0,0.00023487,2]
[335056231,1723795838696,-21232.0073442,0.0002349,3]
[335056232,1723795838710,-25072.7018467,0.0002349,3]
[335056233,1723795838720,-300.0,0.00023494,2]
[335056242,1723795839103,-185.34119542,0.00023497,2]
[335056243,1723795839122,-150.0,0.00023499,2]
[335056244,1723795839132,-1000.0,0.000235,2]
[335056245,1723795839142,-1000.0,0.000235,3]
[335056246,1723795839151,-2000.0,0.000235,2]
[335056247,1723795839161,-2000.0,0.000235,2]
[335056248,1723795839171,-2000.0,0.000235,2]
[335056249,1723795839180,-2000.0,0.000235,2]
[335056250,1723795839190,-2000.0,0.000235,2]
[335056251,1723795839200,-2000.0,0.000235,2]
[335056252,1723795839210,-2000.0,0.000235,2]
[335056253,1723795839219,-2000.0,0.000235,2]
[335056254,1723795839229,-3850.0,0.000235,3]
[335056255,1723795839239,-5000.0,0.000235,31]
[335056256,1723795839250,-5000.0,0.000235,32]
[335056257,1723795839259,-1000.0,0.000235,4]
[335056258,1723795839269,-1000.0,0.000235,5]
[335056259,1723795839279,-1000.0,0.000235,6]
[335056260,1723795839289,-1000.0,0.000235,7]
[335056261,1723795839299,-150.0,0.00023516,2]
[335056262,1723795839308,-150.0,0.00023517,2]
[335056263,1723795839318,-1500.0,0.00023522,2]
[335056264,1723795839327,-42464.0146884,0.00023531,3]
[335056265,1723795839337,-37609.05277,0.00023531,3]
[335056266,1723795839346,-84928.0293767,0.00023531,3]
[335056267,1723795839356,-79461.18134548,0.00023531,3]
[335056268,1723795839368,-995.36520928,0.00023531,3]
[335056269,1723795839387,-1084.0785141,0.00023531,3]
[335056270,1723795839439,-384.30158449,0.00023531,3]
[335056272,1723795840406,-1463.7121964,0.00023531,3]